fUST/lending_fUST_20241107
["ID","MTS","AMOUNT","RATE_DAILY","PERIOD"]
[341517144,1730946658327,-500.0,0.00023835,2]
[341517145,1730946658337,-3609.03,0.00023835,2]
[341517146,1730946658346,-500.0,0.00023835,2]
[341517147,1730946658355,-500.0,0.00023835,2]
[341517148,1730946658365,-500.0,0.00023835,2]
[341517149,1730946658374,-500.0,0.00023835,2]
[341517150,1730946658383,-1794.13,0.00023835,2]
[341517151,1730946658392,-562.21,0.00023835,2]
[341517152,1730946658402,-500.0,0.00023835,2]
[341517153,1730946658412,-8494.18,0.00023835,2]
[341517154,1730946658421,-500.0,0.00023835,2]
[341517155,1730946658431,-180.92585119,0.00023835,2]
[341517156,1730946658441,-151.0,0.00023835,7]
[341517157,1730946658452,-500.0,0.00023835,2]
[341517158,1730946658462,-1770.58,0.00023835,2]
[341517159,1730946658472,-2130.79,0.00023835,2]
[341517160,1730946658482,-528.57,0.00023835,2]
[341517161,1730946658491,-500.0,0.00023835,2]
[341517162,1730946658501,-500.0,0.00023835,2]
[341517163,1730946658510,-500.0,0.00023835,2]
[341517164,1730946658520,-500.0,0.00023835,2]
[341517165,1730946658529,-735.34,0.00023835,2]
[341517166,1730946658538,-500.0,0.00023835,2]
[341517167,1730946658547,-597.87057,0.00023835,7]
[341517168,1730946658557,-644.77,0.00023835,2]
[341517169,1730946658566,-500.0,0.00023835,2]
[341517170,1730946658576,-597.87057,0.00023835,7]
[341517171,1730946658585,-500.0,0.00023835,2]
[341517172,1730946658595,-500.0,0.00023835,2]
[341517173,1730946658605,-520.51,0.00023835,2]
[341517174,1730946658614,-500.0,0.00023835,2]
[341517175,1730946658624,-500.0,0.00023835,2]
[341517176,1730946658633,-500.0,0.00023835,2]
[341517177,1730946658643,-500.0,0.00023835,2]
[341517178,1730946658654,-525.13,0.00023835,2]
[341517179,1730946658664,-500.0,0.00023835,2]
[341517180,1730946658673,-527.77693573,0.00023835,2]
[341517181,1730946658683,-500.0,0.00023835,2]
[341517182,1730946658692,-926.73,0.00023835,2]
[341517183,1730946658703,-500.0,0.00023835,2]
[341517184,1730946658713,-178.4261124,0.00023836,2]
[341517185,1730946658723,-762.116253,0.00023868,7]
[341517186,1730946658734,-151.0,0.00023868,7]
[341517187,1730946658744,-151.0,0.00023868,7]
[341517188,1730946658825,-212.111144,0.00023868,7]
[341517189,1730946658835,-212.111144,0.00023868,7]
[341517190,1730946658844,-200.123598,0.00023868,7]
[341517191,1730946658853,-200.123598,0.00023868,7]
[341517192,1730946658865,-151.0,0.00023868,7]
[341517193,1730946658875,-286.584877,0.00023868,7]
[341517194,1730946658884,-603.745338,0.00023868,7]
[341517195,1730946658894,-159.375462,0.00023868,7]
[341517196,1730946658904,-1038.197397,0.00023868,7]
[341517197,1730946658913,-603.745345,0.00023868,7]
[341517198,1730946658923,-159.375462,0.00023868,7]
[341517199,1730946658932,-1038.197397,0.00023868,7]
[341517200,1730946658941,-151.0,0.00023868,7]
[341517201,1730946658952,-597.87057,0.00023868,7]
[341517202,1730946658962,-597.87057,0.00023868,7]
[341517203,1730946658971,-500.0,0.00023873,2]
[341517204,1730946658981,-502.38822168,0.00023873,2]
[341517205,1730946658990,-504.00679631,0.00023873,2]
[341517206,1730946659000,-166.666666,0.00023969,2]
[341517207,1730946659012,-500.0,0.00024109,2]
[341517208,1730946659021,-500.0,0.00024109,2]
[341517209,1730946659030,-500.0,0.00024109,2]
[341517210,1730946659039,-500.0,0.00024109,2]
[341517211,1730946659050,-500.0,0.00024109,2]
[341517212,1730946659059,-500.0,0.00024109,2]
[341517213,1730946659068,-500.0,0.00024109,2]
[341517214,1730946659079,-518.69044576,0.00024109,2]
[341517215,1730946659089,-500.0,0.00024109,2]
[341517216,1730946659098,-500.0,0.00024109,2]
[341517217,1730946659107,-500.0,0.00024109,2]
[341517218,1730946659117,-500.0,0.00024109,2]
[341517219,1730946659126,-500.0,0.00024109,2]
[341517220,1730946659135,-254.08097092,0.00024109,2]
[341517221,1730946659145,-510.72041136,0.00024109,2]
[341517222,1730946659154,-500.0,0.00024109,2]
[341517223,1730946659163,-500.0,0.00024109,2]
[341517224,1730946659173,-500.0,0.00024109,2]
[341517225,1730946659182,-500.0,0.00024109,2]
[341517226,1730946659192,-945.3,0.00024109,2]
[341517227,1730946659203,-3759.89,0.00024109,2]
[341517228,1730946659213,-500.0,0.00024109,2]
[341517229,1730946659222,-3609.03,0.00024109,2]
[341517230,1730946659232,-500.0,0.00024109,2]
[341517231,1730946659255,-500.0,0.00024109,2]
[341517232,1730946659273,-500.0,0.00024109,2]
[341517233,1730946659292,-519.17883503,0.00024109,2]
[341517234,1730946659319,-1794.13,0.00024109,2]
[341517235,1730946659337,-562.21,0.00024109,2]
[341517236,1730946659359,-414.30455246,0.00024109,2]
[341517237,1730946659376,-8494.18,0.00024109,2]
[341517238,1730946659392,-500.0,0.00024109,2]
[341517239,1730946659413,-500.0,0.00024109,2]
[341517240,1730946659432,-1770.58,0.00024109,2]
[341517241,1730946659446,-2130.79,0.00024109,2]
[341517242,1730946659464,-528.57,0.00024109,2]
[341517243,1730946659483,-500.0,0.00024109,2]
[341517244,1730946659500,-500.0,0.00024109,2]
[341517245,1730946659514,-500.0,0.00024109,2]
[341517246,1730946659530,-500.0,0.00024109,2]
[341517247,1730946659547,-735.34,0.00024109,2]
[341517248,1730946659562,-500.0,0.00024109,2]
[341517249,1730946659577,-644.77,0.00024109,2]
[341517250,1730946659592,-500.0,0.00024109,2]
[341517251,1730946659607,-500.0,0.00024109,2]
[341517252,1730946659621,-500.0,0.00024109,2]
[341517253,1730946659635,-520.51,0.00024109,2]
[341517254,1730946659649,-500.0,0.00024109,2]
[341517255,1730946659665,-601.40207508,0.00024109,2]
[341517256,1730946659680,-465.641919,0.00024109,7]
[341517257,1730946659695,-465.641911,0.00024109,7]
[341517258,1730946659713,-500.0,0.00024109,2]
[341517259,1730946659727,-500.0,0.00024109,2]
[341517260,1730946659740,-525.13,0.00024109,2]
[341517261,1730946659755,-500.0,0.00024109,2]
[341517262,1730946659769,-500.0,0.00024109,2]
[341517263,1730946659783,-926.73,0.00024109,2]
[341517264,1730946659797,-500.0,0.00024109,2]
[341517265,1730946659811,-500.0,0.00024279,2]
[341517266,1730946659825,-381.84159583,0.00024279,2]
[341517267,1730946659838,-500.0,0.00024279,2]
[341517268,1730946659853,-500.0,0.00024279,2]
[341517269,1730946659867,-500.0,0.00024341,2]
[341517270,1730946659880,-502.59533313,0.00024341,2]
[341517271,1730946659896,-762.116253,0.00024383,7]
[341517272,1730946659905,-500.0,0.00024383,2]
[341517273,1730946660004,-500.0,0.00024383,2]
[341517274,1730946660020,-520.00673967,0.00024383,2]
[341517275,1730946660029,-500.0,0.00024383,2]
[341517276,1730946660038,-500.0,0.00024383,2]
[341517277,1730946660048,-151.0,0.00024383,7]
[341517278,1730946660057,-151.0,0.00024383,7]
[341517279,1730946660067,-542.05864854,0.00024383,2]
[341517280,1730946660077,-500.0,0.00024383,2]
[341517281,1730946660086,-500.0,0.00024383,2]
[341517282,1730946660095,-500.0,0.00024383,2]
[341517283,1730946660119,-563.14284851,0.00024383,2]
[341517284,1730946660130,-212.111144,0.00024383,7]
[341517285,1730946660140,-212.111152,0.00024383,7]
[341517286,1730946660149,-500.0,0.00024383,2]
[341517287,1730946660159,-500.0,0.00024383,2]
[341517288,1730946660168,-200.123598,0.00024383,7]
[341517289,1730946660178,-500.0,0.00024383,2]
[341517290,1730946660187,-200.123596,0.00024383,7]
[341517291,1730946660199,-151.0,0.00024383,7]
[341517292,1730946660208,-500.0,0.00024383,2]
[341517293,1730946660218,-500.0,0.00024383,2]
[341517294,1730946660228,-500.0,0.00024383,2]
[341517295,1730946660238,-945.3,0.00024383,2]
[341517296,1730946660248,-159.375462,0.00024383,7]
[341517297,1730946660258,-1038.197397,0.00024383,7]
[341517298,1730946660267,-159.37546,0.00024383,7]
[341517299,1730946660277,-3759.89,0.00024383,2]
[341517300,1730946660287,-1038.19740302,0.00024383,7]
[341517301,1730946660297,-500.0,0.00024383,2]
[341517302,1730946660307,-3609.03,0.00024383,2]
[341517303,1730946660317,-587.68210665,0.00024383,2]
[341517304,1730946660327,-500.0,0.00024383,2]
[341517305,1730946660336,-1794.13,0.00024383,2]
[341517306,1730946660345,-562.21,0.00024383,2]
[341517307,1730946660355,-8494.18,0.00024383,2]
[341517308,1730946660365,-500.0,0.00024383,2]
[341517309,1730946660374,-151.0,0.00024383,7]
[341517310,1730946660383,-500.0,0.00024383,2]
[341517311,1730946660392,-1770.58,0.00024383,2]
[341517312,1730946660402,-2130.79,0.00024383,2]
[341517313,1730946660411,-528.57,0.00024383,2]
[341517314,1730946660421,-500.0,0.00024383,2]
[341517315,1730946660431,-500.0,0.00024383,2]
[341517316,1730946660440,-500.0,0.00024383,2]
[341517317,1730946660452,-500.0,0.00024383,2]
[341517318,1730946660462,-735.34,0.00024383,2]
[341517319,1730946660472,-529.51891973,0.00024383,2]
[341517320,1730946660482,-597.87057,0.00024383,7]
[341517321,1730946660493,-644.77,0.00024383,2]
[341517322,1730946660502,-500.0,0.00024383,2]
[341517323,1730946660512,-597.87057243,0.00024383,7]
[341517324,1730946660522,-500.0,0.00024383,2]
[341517325,1730946660532,-500.0,0.00024383,2]
[341517326,1730946660541,-520.51,0.00024383,2]
[341517327,1730946660551,-260.42818277,0.00024383,2]
[341517328,1730946660560,-500.0,0.00024383,2]
[341517329,1730946660570,-500.0,0.00024383,2]
[341517330,1730946660580,-525.13,0.00024383,2]
[341517331,1730946660589,-500.0,0.00024383,2]
[341517332,1730946660599,-486.26368392,0.00024383,2]
[341517333,1730946660609,-926.73,0.00024383,2]
[341517334,1730946660618,-166.666666,0.00024482,2]
[341517335,1730946660628,-303.4793862,0.00024575,2]
[341517336,1730946660637,-303.4793862,0.00024575,2]
[341517337,1730946660646,-762.116253,0.00024657,7]
[341517338,1730946660655,-545.08891233,0.00024657,2]
[341517339,1730946660665,-468.19196085,0.00024657,2]
[341517340,1730946660674,-500.0,0.00024657,2]
[341517341,1730946660683,-500.0,0.00024657,2]
[341517342,1730946660693,-500.0,0.00024657,2]
[341517343,1730946660703,-500.0,0.00024657,2]
[341517344,1730946660716,-500.0,0.00024657,2]
[341517345,1730946660726,-500.0,0.00024657,2]
[341517346,1730946660735,-500.0,0.00024657,2]
[341517347,1730946660745,-522.25394241,0.00024657,2]
[341517348,1730946660755,-523.51036401,0.00024657,2]
[341517349,1730946660766,-500.0,0.00024657,2]
[341517350,1730946660775,-500.0,0.00024657,2]
[341517351,1730946660785,-945.3,0.00024657,2]
[341517352,1730946660795,-3759.89,0.00024657,2]
[341517353,1730946660804,-633.79874116,0.00024657,2]
[341517354,1730946660815,-202.41665461,0.00024657,2]
[341517355,1730946660824,-3609.03,0.00024657,2]
[341517356,1730946660835,-190.22515206,0.00024657,2]
[341517357,1730946660845,-1794.13,0.00024657,2]
[341517358,1730946660855,-562.21,0.00024657,2]
[341517359,1730946660865,-8494.18,0.00024657,2]
[341517360,1730946660875,-500.0,0.00024657,2]
[341517361,1730946660884,-500.0,0.00024657,2]
[341517362,1730946660894,-1770.58,0.00024657,2]
[341517363,1730946660904,-2130.79,0.00024657,2]
[341517364,1730946660914,-528.57,0.00024657,2]
[341517365,1730946660924,-500.0,0.00024657,2]
[341517366,1730946660934,-500.0,0.00024657,2]
[341517367,1730946660944,-500.0,0.00024657,2]
[341517368,1730946660954,-500.0,0.00024657,2]
[341517369,1730946660964,-735.34,0.00024657,2]
[341517370,1730946660974,-644.77,0.00024657,2]
[341517371,1730946660984,-368.10124226,0.00024657,2]
[341517372,1730946660993,-500.0,0.00024657,2]
[341517373,1730946661007,-151.64260794,0.00024657,2]
[341517374,1730946661017,-520.51,0.00024657,2]
[341517375,1730946661026,-500.0,0.00024657,2]
[341517376,1730946661036,-500.0,0.00024657,2]
[341517377,1730946661047,-525.13,0.00024657,2]
[341517378,1730946661059,-500.0,0.00024657,2]
[341517379,1730946661069,-926.73,0.00024657,2]
[341517380,1730946661078,-5000.0,0.00024658,2]
[341517381,1730946661089,-5000.0,0.00024658,2]
[341517382,1730946661099,-5000.0,0.00024658,2]
[341517383,1730946661109,-5000.0,0.00024658,2]
[341517384,1730946661119,-5000.0,0.00024658,2]
[341517385,1730946661129,-5000.0,0.00024658,2]
[341517386,1730946661139,-5000.0,0.00024658,2]
[341517387,1730946661149,-5000.0,0.00024658,2]
[341517388,1730946661159,-5000.0,0.00024658,2]
[341517389,1730946661173,-5000.0,0.00024658,2]
[341517390,1730946661184,-5000.0,0.00024658,2]
[341517391,1730946661195,-5000.0,0.00024658,2]
[341517392,1730946661206,-5000.0,0.00024658,2]
[341517393,1730946661216,-5000.0,0.00024658,2]
[341517394,1730946661227,-5000.0,0.00024658,2]
[341517395,1730946661238,-5000.0,0.00024658,2]
[341517396,1730946661249,-5000.0,0.00024658,2]
[341517397,1730946661260,-1364.421281,0.00024658,2]
[341517398,1730946661270,-762.116256,0.00024658,7]
[341517399,1730946661280,-575.4567214,0.00024658,2]
[341517400,1730946661289,-500.0,0.00024673,2]
[341517401,1730946661300,-840.73166071,0.00024689,2]
[341517402,1730946661310,-493.45,0.000247,14]
[341517403,1730946661320,-4200.83,0.000247,14]
[341517404,1730946661331,-15628.47,0.000247,14]
[341517405,1730946661341,-587.0,0.00024705,2]
[341517406,1730946661351,-308.7293591,0.0002474,2]
[341517407,1730946661361,-153.0,0.0002474,2]
[341517408,1730946661371,-153.0,0.0002474,2]
[341517409,1730946661381,-153.0,0.0002474,2]
[341517410,1730946661391,-153.8479953,0.0002474,2]
[341517411,1730946661401,-1000.0,0.000248,4]
[341517412,1730946661411,-153.0,0.00024924,2]
[341517413,1730946661421,-517.80867476,0.00024931,2]
[341517414,1730946661432,-500.0,0.00024931,2]
[341517415,1730946661442,-500.0,0.00024931,2]
[341517416,1730946661537,-500.0,0.00024931,2]
[341517417,1730946661547,-540.22292723,0.00024931,2]
[341517418,1730946661558,-500.0,0.00024931,2]
[341517419,1730946661568,-500.0,0.00024931,2]
[341517420,1730946661579,-500.0,0.00024931,2]
[341517421,1730946661589,-945.3,0.00024931,2]
[341517422,1730946661599,-3759.89,0.00024931,2]
[341517423,1730946661609,-3609.03,0.00024931,2]
[341517424,1730946661619,-1794.13,0.00024931,2]
[341517425,1730946661628,-562.21,0.00024931,2]
[341517426,1730946661638,-8494.18,0.00024931,2]
[341517427,1730946661648,-500.0,0.00024931,2]
[341517428,1730946661658,-500.0,0.00024931,2]
[341517429,1730946661667,-1770.58,0.00024931,2]
[341517430,1730946661677,-2130.79,0.00024931,2]
[341517431,1730946661686,-528.57,0.00024931,2]
[341517432,1730946661695,-500.0,0.00024931,2]
[341517433,1730946661706,-535.85738636,0.00024931,2]
[341517434,1730946661716,-500.0,0.00024931,2]
[341517435,1730946661726,-593.70629709,0.00024931,2]
[341517436,1730946661735,-735.34,0.00024931,2]
[341517437,1730946661744,-644.77,0.00024931,2]
[341517438,1730946661754,-500.0,0.00024931,2]
[341517439,1730946661763,-520.51,0.00024931,2]
[341517440,1730946661773,-500.0,0.00024931,2]
[341517441,1730946661782,-525.13,0.00024931,2]
[341517442,1730946661792,-500.0,0.00024931,2]
[341517443,1730946661802,-926.73,0.00024931,2]
[341517444,1730946661811,-394.35718864,0.00025,2]
[341517445,1730946661822,-853.01,0.00025,2]
[341517446,1730946661831,-1000.0,0.00025042,2]
[341517447,1730946661840,-1004.64263425,0.00025042,2]
[341517448,1730946661849,-1000.0,0.00025042,2]
[341517449,1730946661859,-163.50763804,0.00025205,2]
[341517450,1730946661869,-500.0,0.00025205,2]
[341517451,1730946661878,-640.63364284,0.00025205,2]
[341517452,1730946661887,-500.0,0.00025205,2]
[341517453,1730946661897,-500.0,0.00025205,2]
[341517454,1730946661907,-945.3,0.00025205,2]
[341517455,1730946661917,-3759.89,0.00025205,2]
[341517456,1730946661927,-3609.03,0.00025205,2]
[341517457,1730946661936,-1794.13,0.00025205,2]
[341517458,1730946661946,-562.21,0.00025205,2]
[341517459,1730946661955,-8494.18,0.00025205,2]
[341517460,1730946661966,-500.0,0.00025205,2]
[341517461,1730946661975,-500.0,0.00025205,2]
[341517462,1730946661985,-1770.58,0.00025205,2]
[341517463,1730946661995,-2130.79,0.00025205,2]
[341517464,1730946662010,-528.57,0.00025205,2]
[341517465,1730946662020,-510.94187545,0.00025205,2]
[341517466,1730946662032,-500.0,0.00025205,2]
[341517467,1730946662042,-735.34,0.00025205,2]
[341517468,1730946662052,-644.77,0.00025205,2]
[341517469,1730946662062,-500.0,0.00025205,2]
[341517470,1730946662071,-520.51,0.00025205,2]
[341517471,1730946662082,-500.0,0.00025205,2]
[341517472,1730946662092,-525.13,0.00025205,2]
[341517473,1730946662101,-569.12498509,0.00025205,2]
[341517474,1730946662111,-926.73,0.00025205,2]
[341517475,1730946662121,-503.40834372,0.00025242,2]
[341517476,1730946662130,-587.0,0.00025257,2]
[341517477,1730946662140,-601.69720653,0.00025479,2]
[341517478,1730946662149,-500.0,0.00025479,2]
[341517479,1730946662158,-500.0,0.00025479,2]
[341517480,1730946662168,-945.3,0.00025479,2]
[341517481,1730946662180,-3759.89,0.00025479,2]
[341517482,1730946662190,-3609.03,0.00025479,2]
[341517483,1730946662202,-1794.13,0.00025479,2]
[341517484,1730946662217,-562.21,0.00025479,2]
[341517485,1730946662226,-8494.18,0.00025479,2]
[341517486,1730946662236,-500.0,0.00025479,2]
[341517487,1730946662246,-500.0,0.00025479,2]
[341517488,1730946662256,-1770.58,0.00025479,2]
[341517489,1730946662267,-2130.79,0.00025479,2]
[341517490,1730946662276,-528.57,0.00025479,2]
[341517491,1730946662286,-500.0,0.00025479,2]
[341517492,1730946662296,-735.34,0.00025479,2]
[341517493,1730946662305,-644.77,0.00025479,2]
[341517494,1730946662315,-500.0,0.00025479,2]
[341517495,1730946662324,-520.51,0.00025479,2]
[341517496,1730946662334,-500.0,0.00025479,2]
[341517497,1730946662345,-525.13,0.00025479,2]
[341517498,1730946662355,-926.73,0.00025479,2]
[341517499,1730946662365,-303.4019452,0.00025562,2]
[341517500,1730946662375,-1002.35061176,0.00025648,2]
[341517501,1730946662385,-495.42494787,0.00025648,2]
[341517502,1730946662395,-1000.0,0.00025648,2]
[341517503,1730946662404,-1001.59295732,0.00025711,2]
[341517504,1730946662414,-500.0,0.00025753,2]
[341517505,1730946662424,-533.75355872,0.00025753,2]
[341517506,1730946662434,-945.3,0.00025753,2]
[341517507,1730946662444,-3759.89,0.00025753,2]
[341517508,1730946662453,-3609.03,0.00025753,2]
[341517509,1730946662462,-1794.13,0.00025753,2]
[341517510,1730946662472,-562.21,0.00025753,2]
[341517511,1730946662482,-8494.18,0.00025753,2]
[341517512,1730946662492,-500.0,0.00025753,2]
[341517513,1730946662501,-500.0,0.00025753,2]
[341517514,1730946662511,-1770.58,0.00025753,2]
[341517515,1730946662521,-2130.79,0.00025753,2]
[341517516,1730946662531,-528.57,0.00025753,2]
[341517517,1730946662540,-500.0,0.00025753,2]
[341517518,1730946662549,-735.34,0.00025753,2]
[341517519,1730946662559,-644.77,0.00025753,2]
[341517520,1730946662568,-500.0,0.00025753,2]
[341517521,1730946662578,-520.51,0.00025753,2]
[341517522,1730946662587,-500.0,0.00025753,2]
[341517523,1730946662597,-525.13,0.00025753,2]
[341517524,1730946662606,-926.73,0.00025753,2]
[341517525,1730946662615,-153.0,0.00025883,2]
[341517526,1730946662625,-153.0,0.00025883,2]
[341517528,1730946662635,-153.0,0.00025883,2]
[341517529,1730946662643,-493.45,0.000259,14]
[341517530,1730946662654,-4200.83,0.000259,14]
[341517531,1730946662664,-15628.47,0.000259,14]
[341517532,1730946662673,-500.0,0.00026027,2]
[341517533,1730946662683,-945.3,0.00026027,2]
[341517534,1730946662692,-1276.61614505,0.00026027,2]
[341517535,1730946662858,-2483.27385495,0.00026027,2]
[341517536,1730946662868,-3609.03,0.00026027,2]
[341517537,1730946662878,-1794.13,0.00026027,2]
[341517538,1730946662888,-562.21,0.00026027,2]
[341517539,1730946662905,-7621.39370479,0.00026027,2]
[341517540,1730946662921,-602.225,0.00026027,2]
[341517541,1730946663091,500.0,0.00032573,120]
[341517544,1730946726699,500.0,0.00032573,120]
[341517545,1730946732971,2178.96,0.0002083,2]
[341517546,1730946748486,163.599838,0.00013973,2]
[341517549,1730946797155,500.0,0.00032573,120]
[341517550,1730946825244,500.0,0.00032573,120]
[341517551,1730946843184,500.0,0.00032573,120]
[341517552,1730946868195,500.0,0.00032573,120]
[341517553,1730946886843,500.0,0.00032543,120]
[341517555,1730946910692,500.0,0.00032543,120]
[341517556,1730946921567,18320.9401114,0.00020338,2]
[341517557,1730946928247,500.0,0.00032543,120]
[341517558,1730946945777,500.0,0.00032543,120]
[341517559,1730946961451,500.0,0.00032543,120]
[341517560,1730946985634,500.0,0.00032543,120]
[341517561,1730947008207,500.0,0.00032543,120]
[341517562,1730947027389,395.77875941,0.00032543,120]
[341517564,1730947066376,1169.27083333,0.0002083,2]
[341517566,1730947225563,174.1823481,0.0002064,2]
[341517568,1730947351320,210.612165,0.00020758,2]
[341517569,1730947439519,489.0,0.00032471,120]
[341517570,1730947475636,-256.62115359,0.00020898,2]
[341517571,1730947475660,-301.038672,0.00020898,2]
[341517572,1730947475684,-380.1155256,0.00020914,2]
[341517573,1730947475710,-1169.27083333,0.00021698,2]
[341517574,1730947475744,-327.56,0.00021907,3]
[341517575,1730947475779,-300.0,0.00021915,2]
[341517576,1730947475808,-300.0,0.00021915,2]
[341517577,1730947475843,-601.24573726,0.00021916,2]
[341517578,1730947475877,-500.0,0.00021916,2]
[341517579,1730947475909,-500.0,0.00021916,2]
[341517580,1730947475942,-610.23172255,0.00021916,2]
[341517581,1730947475971,-500.0,0.00021916,2]
[341517582,1730947476000,-500.0,0.00021916,2]
[341517583,1730947476028,-500.0,0.00021916,2]
[341517584,1730947476057,-424.16912473,0.00021916,2]
[341517585,1730947476086,-500.0,0.00021916,2]
[341517586,1730947476112,-238.31954676,0.00021916,2]
[341517587,1730947476141,-266.15737352,0.00021917,2]
[341517588,1730947476171,-500.0,0.00021917,2]
[341517589,1730947476200,-555.29,0.00021917,2]
[341517590,1730947476235,-500.0,0.00021917,2]
[341517591,1730947476267,-500.0,0.00021917,2]
[341517592,1730947476295,-508.29268147,0.00021917,2]
[341517593,1730947476325,-500.0,0.00021917,2]
[341517594,1730947476351,-507.23517238,0.00021917,2]
[341517595,1730947476382,-500.0,0.00021917,2]
[341517596,1730947476410,-500.0,0.00021917,2]
[341517597,1730947476438,-500.0,0.00021917,2]
[341517598,1730947476467,-500.0,0.00021917,2]
[341517599,1730947476494,-500.0,0.00021917,2]
[341517600,1730947476520,-500.0,0.00021917,2]
[341517601,1730947476545,-500.0,0.00021917,2]
[341517602,1730947476574,-500.0,0.00021917,2]
[341517603,1730947476601,-500.83622712,0.00021917,2]
[341517604,1730947476628,-500.0,0.00021917,2]
[341517605,1730947476655,-500.0,0.00021917,2]
[341517606,1730947476682,-593.43821414,0.00021917,2]
[341517607,1730947476708,-504.77029019,0.00021917,2]
[341517608,1730947476736,-500.0,0.00021917,2]
[341517609,1730947476763,-500.0,0.00021917,2]
[341517610,1730947476791,-500.0,0.00021917,2]
[341517611,1730947476820,-500.0,0.00021917,2]
[341517612,1730947476848,-500.0,0.00021917,2]
[341517613,1730947476875,-500.0,0.00021917,2]
[341517614,1730947476903,-500.0,0.00021917,2]
[341517615,1730947476930,-500.0,0.00021917,2]
[341517616,1730947476961,-500.0,0.00021917,2]
[341517617,1730947477121,-500.0,0.00021917,2]
[341517618,1730947477145,-532.87161324,0.00021917,2]
[341517619,1730947477170,-500.0,0.00021917,2]
[341517620,1730947477195,-268.69826584,0.00021917,2]
[341517621,1730947477230,-500.0,0.00021917,2]
[341517622,1730947477253,-500.0,0.00021917,2]
[341517623,1730947477277,-501.59536099,0.00021917,2]
[341517624,1730947477299,-503.32912516,0.00021917,2]
[341517625,1730947477323,-500.0,0.00021917,2]
[341517626,1730947477345,-500.0,0.00021917,2]
[341517627,1730947477368,-526.78035665,0.00021917,2]
[341517628,1730947477392,-500.0,0.00021917,2]
[341517629,1730947477414,-501.09203988,0.00021917,2]
[341517630,1730947477436,-500.0,0.00021917,2]
[341517631,1730947477462,-505.65390536,0.00021917,2]
[341517632,1730947477485,-500.0,0.00021917,2]
[341517633,1730947477509,-500.0,0.00021917,2]
[341517634,1730947477533,-500.0,0.00021917,2]
[341517635,1730947477557,-340.3362747,0.00021917,2]
[341517636,1730947477582,-500.0,0.00021917,2]
[341517637,1730947477605,-500.0,0.00021917,2]
[341517638,1730947477628,-500.0,0.00021917,2]
[341517639,1730947477651,-500.0,0.00021917,2]
[341517640,1730947477674,-500.0,0.00021917,2]
[341517641,1730947477698,-500.0,0.00021917,2]
[341517642,1730947477722,-500.0,0.00021917,2]
[341517643,1730947477746,-500.0,0.00021917,2]
[341517644,1730947477770,-576.96120322,0.00021917,2]
[341517645,1730947477793,-500.0,0.00021917,2]
[341517646,1730947477817,-500.0,0.00021917,2]
[341517647,1730947477840,-504.02882223,0.00021917,2]
[341517648,1730947477863,-500.0,0.00021917,2]
[341517649,1730947477886,-177.74154196,0.00021917,2]
[341517650,1730947477909,-500.0,0.00021917,2]
[341517651,1730947477932,-501.91830309,0.00021917,2]
[341517652,1730947477955,-500.0,0.00021917,2]